Cogmind - Beta 13 @@@ ROGUE MODE // 2024.04.01 @ 21:41:33 Player: Ciaphas Result: Destroyed by 6I-D1Q(R) with Subdweller Machine Gun Performance ------------- Evolutions (0) 0 Regions Visited (3) 600 Robots Destroyed (20) 100 Value Destroyed (396) 396 Prototype IDs (4) 80 Alien Tech Used (0) 0 Bonus (0) 0 TOTAL SCORE: 1176 Bonus ------- None Cogmind --------- Core Integrity 0/250 Matter 221/300 Energy 250/250 System Corruption 1% Temperature Cool (0) Movement Walking (260) Ox2 Location -10/Subcaves Parts ------- > --- POWER (1) -------- Ion Engine > --- PROPULSION (2) --- Aluminum Leg > --- UTILITY (2) ------ Medium Storage Unit ECM Suite > --- WEAPON (2) ------- Light Assault Rifle Grenade Launcher > --- INVENTORY (10) --- Small Storage Unit Small Storage Unit Structural Scanner Propulsion Shielding Light Assault Rifle Grenade Launcher Mining Laser Peak State ------------ > --- POWER ------------ Light Nuclear Core > --- PROPULSION ------- Aluminum Leg > --- UTILITY ---------- Small Storage Unit Salvage Targeting Computer > --- WEAPON ----------- Light Assault Rifle Grenade Launcher > --- INVENTORY -------- Ion Engine Ion Engine Light Assault Rifle Mining Laser [Rating: 9] Favorites ----------- Power Ion Engine Engine Ion Engine Power Core Light Nuclear Core Propulsion Aluminum Leg Treads Light Treads Leg Aluminum Leg Utility Small Storage Unit Device Structural Scanner Storage Small Storage Unit Processor Salvage Targeting Computer Weapon Light Assault Rifle Energy Gun EM Pulse Gun Ballistic Gun Light Assault Rifle Launcher Grenade Launcher Build | -11 -10 -10 -10 ------- Run | Yrd Mat Min Sub Slots Evolved . | . . . . Power . | . . . . Propulsion . | . . . . Utility . | . . . . Weapon . | . . . . Parts Attached 22 | 3 16 1 2 Power 5 | . 4 . 1 Engine 4 | . 3 . 1 Core 1 | . 1 . . Reactor . | . . . . Propulsion 4 | 2 2 . . Treads 2 | 2 . . . Leg 2 | . 2 . . Wheel . | . . . . Hover . | . . . . Flight . | . . . . Utility 6 | . 4 1 1 Device 3 | . 2 . 1 Storage 2 | . 1 1 . Processor 1 | . 1 . . Hackware . | . . . . Protection . | . . . . Artifact . | . . . . Weapon 7 | 1 6 . . Energy Gun . | . . . . Energy Cannon . | . . . . Ballistic Gun 4 | 1 3 . . Ballistic Cannon . | . . . . Launcher 3 | . 3 . . Special Weapon . | . . . . Impact Weapon . | . . . . Slashing Weapon . | . . . . Piercing Weapon . | . . . . Special Melee Weapon . | . . . . Unidentified Prototypes . | . . . . Parts Lost 7 | . 5 . 2 Power 2 | . 1 . 1 Propulsion 3 | . 2 . 1 Utility 1 | . 1 . . Weapon 1 | . 1 . . Highest Loss Streak 2 | . 2 . 1 To Critical Strikes 1 | . 1 . . Average Slot Usage (%) 94 | . 91 100 99 Engine 11 | . 9 14 14 Core 2 | . 4 . . Treads 6 | . 10 . . Leg 18 | . 12 28 27 Device 8 | . 4 14 14 Storage 14 | . 14 14 14 Processor 5 | . 9 . . Ballistic Gun 17 | . 19 14 14 Launcher 9 | . 5 14 14 Naked Turns . | . . . . Heaviest Build 21 | 13 15 20 21 Greatest Support 40 | 40 40 20 20 Greatest Overweight (x) 3 | . 3 . 2 Average Overweight (x) . | . . . . Largest Inventory Capacity 10 | 8 8 10 10 Average Capacity 8 | 8 8 9 10 Most Carried 8 | 5 6 8 8 Average Carried 5 | 3 3 7 7 Final Capacity 10 | 8 8 10 10 Final Carried 8 | 1 6 8 7 Class Distribution -------------------- 100% | Mutant Dominant Class ---------------- Mutant | -10/Materials Mutant | -10/Mines Mutant | -10/Subcaves Resources | -11 -10 -10 -10 ----------- Run | Yrd Mat Min Sub Matter Collected 601 | 189 285 33 94 Remotely . | . . . . Salvage Created 371 | . 366 5 . Parts 46 | . 42 4 . Haulers Intercepted 1 | . 1 . . Recyclers Shooed 1 | . 1 . . Parts Field Recycled . | . . . . Retrieved Matter . | . . . . Parts Self-Destructed . | . . . . Prevented . | . . . . Kills | -11 -10 -10 -10 ------- Run | Yrd Mat Min Sub Combat Hostiles Destroyed 14 | . 11 3 . Guns 9 | . 9 . . AOE 5 | . 2 3 . Classes Destroyed 6 | . 6 . . Worker 2 | . 2 . . Tunneler 1 | . 1 . . Hauler 1 | . 1 . . Watcher 2 | . 2 . . Swarmer 9 | . 6 3 . Grunt 5 | . 5 . . Best Kill Streak 4 | . 4 3 . Combat Bots Only 4 | . 4 3 . Max Kills in Single Turn 2 | . 1 2 . Gunslinging . | . . . . Exploded 2 | . 1 2 . Melee . | . . . . Uniques/NPCs Destroyed . | . . . . Combat | -11 -10 -10 -10 -------- Run | Yrd Mat Min Sub Hostile Shots Fired 138 | . 113 17 8 Missed 46 | . 37 6 3 Damage Taken 1201 | . 894 120 187 Core 251 | . 150 48 53 Absorbed by Shields . | . . . . Core Remaining (%) 100 | 100 . . . Volleys Fired 65 | . 58 7 . Largest 2 | . 2 1 . Hottest 40 | . 40 30 . Shots Fired 92 | . 85 7 . Gun 75 | . 75 . . Cannon . | . . . . Launcher 17 | . 10 7 . Special . | . . . . Kinetic 75 | . 75 . . Thermal . | . . . . Explosive 17 | . 10 7 . Electromagnetic . | . . . . Robot Hit Streak 4 | . 4 3 . Robot Miss Streak 5 | . 5 1 . Penetration Max . | . . . . Secondary Targets . | . . . . Shots Hit Robots 40 | . 37 3 . Core Hits 33 | . 27 6 . Critical Kills . | . . . . Critical Parts Destroyed . | . . . . Critical Strikes . | . . . . Melee Attacks . | . . . . Impact . | . . . . Slashing . | . . . . Piercing . | . . . . Sneak Attacks . | . . . . Combat Hostiles . | . . . . Follow-up Attacks . | . . . . Damage Inflicted 1286 | . 958 328 . Guns 360 | . 360 . . Cannons . | . . . . Explosions 926 | . 598 328 . Melee . | . . . . Ramming . | . . . . Kinetic 360 | . 360 . . Thermal . | . . . . Explosive 926 | . 598 328 . Electromagnetic . | . . . . Impact . | . . . . Slashing . | . . . . Piercing . | . . . . Highest Corruption 1 | . 1 1 1 Average Corruption 1 | . 1 1 1 Corruption Purged . | . . . . Corruption Blocked . | . . . . Effects 9 | . 4 . 5 Message Errors 4 | . . . 4 Matter Fused 1 | . 1 . . Heat Flow Errors 2 | . 2 . . Data Loss (major) 1 | . . . 1 Alerts 1 | . 1 . . Overload Shots . | . . . . Overflow Damage 18 | . 18 . . Projectiles . | . . . . Explosions 18 | . 18 . . Melee . | . . . . Knockbacks . | . . . . Impact . | . . . . Kinetic . | . . . . Secondary . | . . . . Self-Inflicted Damage 214 | . 181 33 . Shots 6 | . 4 2 . Rammed . | . . . . Targets Rammed . | . . . . Kicked . | . . . . Crushed . | . . . . Highest Temperature 159 | . 159 . . Average Temperature 34 | . 34 . . Received Heat Transfer 183 | . 165 . 18 Siege Activations . | . . . . Robots Corrupted . | . . . . Combat Hostiles . | . . . . Parts Fried . | . . . . Impact Corruptions . | . . . . Robots Melted . | . . . . Combat Hostiles . | . . . . Parts Melted . | . . . . Heat Transferred . | . . . . Parts Sabotaged . | . . . . Parts Stolen . | . . . . Parts Stripped . | . . . . Power Chain Reactions . | . . . . Alert | -11 -10 -10 -10 ------- Run | Yrd Mat Min Sub Peak Influence 206 | . 206 186 . Initial 63 | . . 63 . Average 91 | . 85 124 . Maximum Alert Level 1 | . 1 . . Low Security (%) 99 | 100 99 100 . Level 1 . | . . . . Level 2 . | . . . . Level 3 . | . . . . Level 4 . | . . . . Level 5 . | . . . . High Security . | . . . . Max Security . | . . . . Squads Dispatched 1 | . 1 . . Investigation . | . . . . Extermination . | . . . . Reinforcement 1 | . 1 . . Assault . | . . . . Garrison . | . . . . Intercept . | . . . . Searches Triggered . | . . . . Construction Impeded . | . . . . Haulers Reinforced . | . . . . Active Scanning Responses . | . . . . Cargo Convoy Interrupts . | . . . . Stealth | -11 -10 -10 -10 --------- Run | Yrd Mat Min Sub Distress Signals 2 | . 2 . . Communications Jammed . | . . . . Distress Signals . | . . . . Times Spotted 24 | . 19 3 2 Peak Tracking Total 5 | . 5 3 2 Tactical Retreats . | . . . . Traps | -11 -10 -10 -10 ------- Run | Yrd Mat Min Sub Traps Triggered 3 | . 1 . 2 Indirectly . | . . . . Trap Hack Attempts . | . . . . Triggered . | . . . . Disarmed . | . . . . Reprogrammed . | . . . . Reused . | . . . . Traps Extracted . | . . . . Installed . | . . . . Triggered . | . . . . Machines | -11 -10 -10 -10 ---------- Run | Yrd Mat Min Sub Machines Disabled 8 | . 6 2 . Max in Single Turn 2 | . 2 2 . Machines Repaired . | . . . . Machines Dismantled . | . . . . Machines Sabotaged . | . . . . Overloaded Fab Kills . | . . . . Hacking | -11 -10 -10 -10 --------- Run | Yrd Mat Min Sub Machines Accessed 10 | . 9 1 . Terminals 8 | . 7 1 . Fabricators . | . . . . Repair Stations . | . . . . Recycling Units 2 | . 2 . . Scanalyzers . | . . . . Garrison Access . | . . . . Total Hacks 33 | . 29 4 . Successful 15 | . 15 . . Failed 18 | . 14 4 . Catastrophic 3 | . 3 . . Database Lockouts . | . . . . Manual 14 | . 14 . . Terminals 30 | . 26 4 . Fabricators . | . . . . Repair Stations . | . . . . Recycling Units 3 | . 3 . . Scanalyzers . | . . . . Garrison Access . | . . . . Terminal Hacks 10 | . 10 . . Robot Analysis 3 | . 3 . . Prototype ID Bank 2 | . 2 . . Alert Level 1 | . 1 . . Locate Traps 1 | . 1 . . Maintenance Status 1 | . 1 . . Transport Status 1 | . 1 . . Registered Components 1 | . 1 . . Fabricator Hacks . | . . . . Repair Station Hacks . | . . . . Recycling Unit Hacks 3 | . 3 . . Process 1 | . 1 . . Report Inventory 2 | . 2 . . Scanalyzer . | . . . . Garrison Access Hacks . | . . . . Unauthorized Hacks 2 | . 2 . . Terminals 2 | . 2 . . Botnet 2 | . 2 . . Fabricators . | . . . . Repair Stations . | . . . . Recycling Units . | . . . . Scanalyzers . | . . . . Garrison Access . | . . . . Data Cores Recovered . | . . . . Used . | . . . . Hacking Detections 8 | . 7 1 . Full Trace Events . | . . . . Feedback Events . | . . . . Feedback Blocked . | . . . . Robot Schematics Acquired . | . . . . Robots Built . | . . . . Authchips . | . . . . Time . | . . . . Total Robot Build Rating . | . . . . Part Schematics Acquired . | . . . . Parts Built . | . . . . Authchips . | . . . . Time . | . . . . Total Part Build Rating . | . . . . Parts Repaired . | . . . . Time . | . . . . Parts Recycled . | . . . . Recycled Matter 167 | . 167 . . Retrieved Matter . | . . . . Retrieved Components . | . . . . Parts Scanalyzed . | . . . . Part Schematics Acquired . | . . . . Parts Damaged . | . . . . Bothacking | -11 -10 -10 -10 ------------ Run | Yrd Mat Min Sub Used RIF Installer . | . . . . Robots Hacked . | . . . . Non-combat . | . . . . Combat . | . . . . Robot Hacks Applied . | . . . . Relay Couplers Released . | . . . . Fabnet Peak Effective % . | . . . . Robots Rewired . | . . . . Allies Hacked . | . . . . Hacks Repelled . | . . . . Allies | -11 -10 -10 -10 -------- Run | Yrd Mat Min Sub Total Allies . | . . . . Largest Group . | . . . . Highest-Rated Group . | . . . . Highest-Rated Ally . | . . . . Total Orders . | . . . . Ally Attacks . | . . . . Total Damage . | . . . . Kills . | . . . . Allies Corrupted . | . . . . Allies Melted . | . . . . Intel | -11 -10 -10 -10 ------- Run | Yrd Mat Min Sub Robot Analysis Total 3 | . 3 . . Derelict Logs Recovered 3 | . . 1 2 Drone Launches . | . . . . Drone Recoveries . | . . . . Exploration | -11 -10 -10 -10 ------------- Run | Yrd Mat Min Sub Turns Passed 1709 | 8 1021 232 448 Spaces Moved 1088 | 1 560 163 364 Core 1 | . 1 . . Treads 189 | 1 188 . . Legs 898 | . 371 163 364 Wheels . | . . . . Hover . | . . . . Flight . | . . . . Fastest Speed 120 | 160 120 120 120 Average Speed 137 | 160 153 120 121 Slowest Speed 260 | 160 200 120 260 Overloaded Moves . | . . . . Propulsion Burnouts . | . . . . Robots Hopped . | . . . . Cave-ins Triggered . | . . . . Exploration Rate (%) 39 | 2 77 52 28 Regions Visited 3 Branch Regions 2 Pre-discovered Areas . | . . . . Known Exits Taken . | . . . . Unknown Exits Taken 3 | 1 1 1 . Scrap Searched 2 | . . 2 . Spaces Dug . | . . . . Terrain Destroyed 115 | . 89 26 . Melee . | . . . . Projectile . | . . . . AOE 115 | . 89 26 . Terrain Rammed . | . . . . Walls Destroyed . | . . . . Machines Disabled . | . . . . Actions | -11 -10 -10 -10 --------- Run | Yrd Mat Min Sub Total 1215 | 8 648 192 367 Wait 22 | . 1 21 . Move 1085 | . 559 162 364 Hop . | . . . . Pick Up 6 | . 5 1 . Fast Attach 7 | . 7 . . Attach 6 | . 4 . 2 Detach 6 | . 5 . 1 Swap 9 | 3 5 1 . Drop 9 | 5 4 . . Fire 65 | . 58 7 . Melee . | . . . . Ram . | . . . . Kick . | . . . . Crush . | . . . . Escape Stasis . | . . . . Rewire . | . . . . Trap . | . . . . Miscellaneous . | . . . . Route ------- -11/Scrapyard -10/Materials (discovered 4 exits: [*Mat x3] / *Min) -10/Mines (discovered 2 exits: [*Mat] / [*Sub]) -10/Subcaves (discovered 1 exit: [*Mat]) History --------- Turn | Location | Event 9 | -11/Scrapyard | Discovered new exit (range 0) 9 | -11/Scrapyard | Entered Materials 222 | -10/Materials | Discovered new exit (range 16) 302 | -10/Materials | Build established: Mutant 328 | -10/Materials | Discovered new exit (range 13) 395 | -10/Materials | Core integrity fell below 50% 665 | -10/Materials | Discovered new exit (range 8) 887 | -10/Materials | Discovered new exit (range 15) 1030 | -10/Materials | Entered Mines 1069 | -10/Mines | Learned Materials interactive machine intel 1155 | -10/Mines | Discovered new exit (range 9) 1204 | -10/Mines | Discovered new exit (range 11) 1262 | -10/Mines | Entered Subcaves 1356 | -10/Subcaves | Core integrity fell below 20% 1411 | -10/Subcaves | Learned Materials trap positions 1499 | -10/Subcaves | Learned location of 1 exit from Materials 1534 | -10/Subcaves | Discovered new exit (range 13) 1710 | -10/Subcaves | Destroyed by 6I-D1Q(R) with Subdweller Machine Gun Last Messages --------------- 01364_ Triggered Piercing Trap. 01364_ Spikes shoot up from the floor. 01364_ Critical hit (Impale). 01364_ Ion Engine destroyed. 01364_ Critical hit (Impale). 01402_ Acquired 7 matter. 01411_ Acquired derelict log, extracted data. Data stored: Materials trap records. 01499_ Acquired derelict log, extracted data. Data stored: Materials exits (x1). 01501_ RCPGGQBHMR:E:JSAXDBFPMFJL|PR 01699_ Aluminum Leg destroyed. Map ----- +----------------------------------------------------+ | ??????????????????????????????????????????????? | | ??????????????????????????????????????????????? | | ??????????????????????????????????????????????? | | ??????????????????????????????????????????????# | | ??????????????????????????????????????????????# | | ?????????????????????????#### ????????????????# | | ?????????????????????????##### ??????????????? | | ????????????????????????? ####??????????????? | | ?????????????????????#### ###??????????????? | | ???????????????########### ???#####??????? | | ???????????????######## ## ??? #####??????? | | ??????????????### ## ?? ### ##??????? | | ??????????????### ? ### ##??????? | | ??????????????## ##?### ###??????? | | ??????????????# ##### ######???? | | ??????????????????## ##### ########?? | | ??????????????????### ### ####? | | ???????????????????## #### #### | | ??????????????????### #### ### | | ??????????????????### ###### #### # | | ?????????????????### ####### #### | | ????????????????#### ## ### ##### ## | | ????????????????### R### # # ## | | ????????????????## ### ## ## | | ????????????????## ##### ### ## " ## | | ????????????????### @ ################& # | | ????????????????#### ##??############ # | | ?????????????????### ##????????????## # | | ??????????????????## ##????????????## " " | | ??????????????????## ##????????????#######" | | ??????????????????### ##????????????######## | | ??????????????????#### ###???????????????????? | | ????????????????????#######???????????????????? | | ?????????????????????#####????????????????????? | | ??????????????????????????????????????????????? | | ??????????????????????????????????????????????? | | ??????????????????????????????????????????????? | | ??????????????????????????????????????????????? | | ??????????????????????????????????????????????? | | ??????????????????????????????????????????????? | | ??????????????????????????????????????????????? | | ??????????????????????????????????????????????? | | ??????????????????????????????????????????????? | | ??????????????????????????????????????????????? | | ??????????????????????????????????????????????? | | ??????????????????????????????????????????????? | | ??????????????????????????????????????????????? | | | | | | | +----------------------------------------------------+ Best States ------------- Heat Dissipation 25 Energy Generation 14 Energy Capacity 250 Matter Stores 300 Matter Capacity 300 Sight Range 16 Terrain Scan Density 10 ECM Strength 1 Evasion (%) 55 Recoil Reduction 2 Salvage Targeting 1 Item Schematics ----------------- None Robot Schematics ------------------ None Fabricated ------------ Nothing Alien Tech Used ----------------- None Achievements -------------- None Challenges ------------ None Game ------ Seed EncryptedMetaTerrabomb Manual? 0 Play Time 00:17:33 Cumulative 3.1 hours Start 2024.04.01 @ 21:26:20 End 2024.04.01 @ 21:41:33 Sessions 1 Manual Loads 0 Difficulty Rogue Special Mode None Game No. 6 Rogue 6 Adventurer 0 Explorer 0 Win Type - Total 0 Types 0/0/0/0/0/0/0/0/0 Lore% 11 Gallery% 7 Achievement% 21 Wizard Run 0 Options --------- Layout 1 ASCII 0 Keyboard 0 Movement Numpad Keybinds 0 Fullscreen 2 Font 32/Proggy Map View 50x35 Zoom Use 0% Tactical HUD 1 Map Filters NONE Filters NONE Steam 1 RUN: b3a9505a-36ae-4af0-83b8-ec89a15cc723